bitfinex-derivatives/quotes_BTCF0:USTF0_20250709
["timestamp","ask_amount","ask_price","bid_price","bid_amount"]
[1752101750163,0.1794542,111410.0,111400.0,0.0642]
[1752101750354,1.72492582,111410.0,111400.0,0.20691594]
[1752101750659,0.65524,111410.0,111400.0,0.47178363]
[1752101750863,0.65524,111410.0,111400.0,0.53598363]
[1752101751062,0.65524,111410.0,111400.0,0.54938336]
[1752101751463,0.65524,111410.0,111400.0,0.55335893]
[1752101751657,0.65524,111410.0,111400.0,0.91415893]
[1752101752164,0.65524,111410.0,111400.0,0.91411257]
[1752101752375,0.65524,111410.0,111400.0,0.91911257]
[1752101753467,0.65524,111410.0,111400.0,0.91611257]
[1752101753660,0.65524,111410.0,111400.0,0.91211257]
[1752101753861,0.65524,111410.0,111400.0,0.91311257]
[1752101754267,0.8346942,111410.0,111400.0,0.91311257]
[1752101755875,0.30485294,111420.0,111410.0,0.1794542]
[1752101756064,0.8832272,111420.0,111410.0,0.86005487]
[1752101756263,0.8832272,111420.0,111410.0,0.88730339]
[1752101756971,0.91887258,111420.0,111410.0,0.88730339]
[1752101757471,0.91887258,111420.0,111410.0,0.88722658]
[1752101757867,0.91887258,111420.0,111410.0,0.8872388]
[1752101758564,0.91887258,111420.0,111410.0,0.64791443]
[1752101758763,0.93406258,111420.0,111410.0,0.5264388]
[1752101759070,1.56468695,111420.0,111410.0,0.05468053]
[1752101759265,1.59568695,111420.0,111410.0,0.23413473]
[1752101759466,1.60376695,111420.0,111410.0,0.07022053]
[1752101759671,1.60376695,111420.0,111410.0,0.23915443]
[1752101759865,1.60376695,111420.0,111410.0,0.22361443]
[1752101760067,1.60376695,111420.0,111410.0,0.23915443]
[1752101760466,1.36444258,111420.0,111410.0,0.23929591]
[1752101761163,1.66360853,111420.0,111410.0,0.0295669]
[1752101761362,1.66360853,111420.0,111410.0,0.0273812]
[1752101761568,1.66360853,111420.0,111410.0,0.0140269]
[1752101761863,1.44498832,111420.0,111410.0,0.02739262]
[1752101762070,1.36444258,111420.0,111410.0,0.04293262]
[1752101762264,1.36449906,111420.0,111410.0,0.0295669]
[1752101762463,1.36449906,111420.0,111410.0,0.04300088]
[1752101763059,0.68230906,111420.0,111410.0,0.22245508]
[1752101763261,1.36701906,111420.0,111410.0,0.22245508]
[1752101763663,1.32215866,111420.0,111410.0,0.52154902]
[1752101763862,1.4027044,111420.0,111410.0,0.52154902]
[1752101764260,1.4027044,111420.0,111410.0,0.22238307]
[1752101764962,1.32214996,111420.0,111410.0,0.22238307]
[1752101765266,1.32214996,111420.0,111410.0,0.24580307]
[1752101765469,1.4026957,111420.0,111410.0,0.24580307]
[1752101766069,1.4026957,111420.0,111410.0,0.22238307]
[1752101766471,1.4259657,111420.0,111410.0,0.04292887]
[1752101766968,1.4026957,111420.0,111410.0,0.22238307]
[1752101767274,1.4026957,111420.0,111410.0,0.52154902]
[1752101767474,1.4026957,111420.0,111410.0,0.54496902]
[1752101767769,1.2307776,111420.0,111410.0,0.53160906]
[1752101767963,0.7942076,111420.0,111410.0,0.6074423]
[1752101768166,0.71409154,111420.0,111410.0,0.6074423]
[1752101768876,0.89352964,111420.0,111410.0,0.6074423]
[1752101769079,0.89352964,111420.0,111410.0,0.9682423]
[1752101771672,0.89352964,111420.0,111410.0,0.66907635]
[1752101771870,0.21556964,111420.0,111410.0,0.9682423]
[1752101772071,0.89336964,111420.0,111410.0,0.9682423]
[1752101772267,0.03613154,111420.0,111410.0,0.8477951]
[1752101772475,0.03613154,111420.0,111410.0,1.14696105]
[1752101773277,0.21556964,111420.0,111410.0,1.14696105]
[1752101773476,0.03613154,111420.0,111410.0,1.14696105]
[1752101773677,0.03613154,111420.0,111410.0,1.14896105]
[1752101773980,0.03613154,111420.0,111410.0,1.14996105]
[1752101774373,0.03613154,111420.0,111410.0,1.14995789]
[1752101774772,0.03613154,111420.0,111410.0,0.97044589]
[1752101775678,0.21556964,111420.0,111410.0,0.97044589]
[1752101776083,0.23181964,111420.0,111410.0,0.60964589]
[1752101777180,0.23181964,111420.0,111410.0,0.60964623]
[1752101777986,0.05238154,111420.0,111410.0,0.97044623]
[1752101778283,0.03613154,111420.0,111410.0,0.97044623]
[1752101780186,0.03613154,111420.0,111410.0,0.67128028]
[1752101780390,0.03613154,111420.0,111410.0,0.97044623]
[1752101784393,0.08054574,111430.0,111420.0,0.1794381]
[1752101784581,0.08054574,111430.0,111420.0,0.61676458]
[1752101784885,1.10824524,111440.0,111430.0,0.179422]
[1752101785086,1.10824524,111440.0,111430.0,0.54096192]
[1752101785291,1.06339294,111440.0,111430.0,0.57226192]
[1752101785989,1.01854144,111440.0,111430.0,0.57226192]
[1752101786289,1.02054144,111440.0,111430.0,0.57226192]
[1752101786985,1.38134144,111440.0,111430.0,0.57226192]
[1752101787292,1.38134144,111440.0,111430.0,0.27309597]
[1752101787480,1.38134144,111440.0,111430.0,0.57226192]
[1752101787788,1.20120574,111440.0,111430.0,0.61324192]
[1752101787980,1.20110547,111440.0,111430.0,0.61324192]
[1752101788180,1.37979137,111440.0,111430.0,0.61324192]
[1752101788889,1.37979137,111440.0,111430.0,0.53696813]
[1752101789191,1.37979137,111440.0,111430.0,0.50566813]
[1752101789389,1.40415137,111440.0,111430.0,0.21059597]
[1752101789590,1.64336353,111440.0,111430.0,0.21059597]
[1752101789890,1.64336353,111440.0,111430.0,0.19656949]
[1752101790094,0.71231137,111440.0,111430.0,0.19656949]
[1752101790293,1.42068137,111440.0,111430.0,0.21288949]
[1752101790794,1.42068137,111440.0,111430.0,0.43578165]
[1752101791093,1.42068137,111440.0,111430.0,0.45210165]
[1752101791698,1.42068137,111440.0,111430.0,0.46612782]
[1752101792899,1.42068137,111440.0,111430.0,0.45210165]
[1752101793199,1.42068137,111440.0,111430.0,0.22691566]
[1752101793400,1.42068137,111440.0,111430.0,0.46612782]
[1752101793595,1.42068137,111440.0,111430.0,0.28670582]
[1752101794500,1.42068137,111440.0,111430.0,0.04749366]
[1752101794699,1.42068137,111440.0,111430.0,0.28670582]
[1752101795497,1.42068137,111440.0,111430.0,0.22691566]
[1752101795800,1.35648164,111440.0,111430.0,0.46612782]
[1752101796000,1.42018164,111440.0,111430.0,0.46612782]
[1752101796191,1.42018164,111440.0,111430.0,0.22691566]
[1752101796391,1.45785632,111440.0,111430.0,0.46612782]
[1752101796601,1.45785632,111440.0,111430.0,0.4661275]
[1752101796801,1.43349632,111440.0,111430.0,0.4661275]
[1752101797001,1.43349632,111440.0,111430.0,0.4964275]
[1752101797204,1.07269632,111440.0,111430.0,0.4964275]
[1752101797401,1.07269632,111440.0,111430.0,0.5210875]
[1752101797802,1.43349632,111440.0,111430.0,0.5210875]
[1752101798103,1.43349632,111440.0,111430.0,0.4964275]
[1752101798903,1.45692632,111440.0,111430.0,0.03117334]
[1752101799105,1.45692632,111440.0,111430.0,0.2703855]
[1752101799301,1.45692632,111440.0,111430.0,0.04696334]
[1752101799703,1.45692632,111440.0,111430.0,0.2861755]
[1752101800103,1.45692632,111440.0,111430.0,0.04696334]
[1752101800304,1.45692632,111440.0,111430.0,0.2861755]
[1752101800606,1.45692632,111440.0,111430.0,0.04696334]
[1752101800806,0.58540042,111440.0,111430.0,0.4655976]
[1752101801001,0.31687642,111440.0,111430.0,0.4900676]
[1752101801207,0.31687642,111440.0,111430.0,0.5535676]
[1752101801706,0.31687642,111440.0,111430.0,0.56408681]
[1752101801906,0.31687642,111440.0,111430.0,0.32487465]
[1752101802101,0.67767642,111440.0,111430.0,0.32487465]
[1752101802406,0.67767642,111440.0,111430.0,0.56408681]
[1752101803810,0.67767642,111440.0,111430.0,0.32959474]
[1752101804109,0.76610642,111440.0,111430.0,0.29669474]
[1752101804298,0.76491642,111440.0,111430.0,0.21059544]
[1752101804504,0.76491642,111440.0,111430.0,0.4655976]
[1752101804808,0.76491642,111440.0,111430.0,0.22638544]
[1752101805003,0.76491642,111440.0,111430.0,0.04169264]
[1752101805210,0.76491642,111440.0,111430.0,0.4498075]
[1752101805399,0.76491642,111440.0,111430.0,0.4655975]
[1752101806705,0.76491642,111440.0,111430.0,0.22638534]
[1752101807007,0.76491642,111440.0,111430.0,0.22638524]
[1752101807008,0.14465042,111440.0,111430.0,0.22638524]
[1752101807212,0.33911632,111440.0,111430.0,0.4970974]
[1752101807406,0.89183042,111440.0,111430.0,0.64878524]
[1752101807605,1.07123632,111440.0,111430.0,0.5271974]
[1752101807807,1.03274632,111440.0,111430.0,0.5114074]
[1752101808004,1.03274632,111440.0,111430.0,0.5516674]
[1752101808904,1.03274632,111440.0,111430.0,0.56218623]
[1752101810007,1.05125187,111440.0,111430.0,0.32297407]
[1752101810311,1.05125187,111440.0,111430.0,0.53771623]
[1752101811198,1.10648187,111440.0,111430.0,0.34250423]
[1752101811400,1.76466417,111440.0,111430.0,0.03117324]
[1752101811908,1.76466417,111440.0,111430.0,0.01402575]
[1752101812407,1.73789977,111440.0,111430.0,0.02723959]
[1752101812910,1.49868761,111440.0,111430.0,0.02723959]
[1752101813412,1.73789977,111440.0,111430.0,0.02723959]
[1752101813712,1.49868761,111440.0,111430.0,0.27009073]
[1752101813912,1.49868761,111440.0,111430.0,0.03087857]
[1752101814511,1.41793613,111440.0,111430.0,0.03087857]
[1752101815015,1.41793613,111440.0,111430.0,0.27009073]
[1752101815216,1.41793613,111440.0,111430.0,0.03087857]
[1752101815417,1.49870631,111440.0,111430.0,0.03087857]
[1752101815710,1.41793613,111440.0,111430.0,0.21030057]
[1752101816216,1.4987079,111440.0,111430.0,0.21030057]
[1752101817714,1.4987079,111440.0,111430.0,0.44951273]
[1752101817909,1.4987079,111440.0,111430.0,0.27009073]
[1752101818309,1.52545201,111440.0,111430.0,0.27009073]
[1752101818510,1.52545201,111440.0,111430.0,0.03087916]
[1752101818712,1.52545201,111440.0,111430.0,0.27009132]
[1752101818909,0.68839646,111440.0,111430.0,0.21030116]
[1752101819109,1.04404766,111440.0,111430.0,0.53110332]
[1752101819314,1.05910766,111440.0,111430.0,0.53110332]
[1752101820015,1.05910766,111440.0,111430.0,0.29189116]
[1752101820215,1.05910766,111440.0,111430.0,0.53110332]
[1752101820812,0.97834058,111440.0,111430.0,0.53110332]
[1752101821117,1.05910654,111440.0,111430.0,0.53110252]
[1752101822417,1.04404654,111440.0,111430.0,0.51531252]
[1752101822614,1.04404654,111440.0,111430.0,0.29189036]
[1752101822813,1.04404654,111440.0,111430.0,0.53110252]
[1752101823015,0.96328058,111440.0,111430.0,0.54162167]
[1752101823217,0.97834058,111440.0,111430.0,0.54162167]
[1752101825518,1.05910654,111440.0,111430.0,0.53110252]
[1752101825817,1.05910654,111440.0,111430.0,0.29189036]
[1752101826322,1.05910654,111440.0,111430.0,0.53110251]
[1752101827622,1.05910654,111440.0,111430.0,0.09667835]
[1752101827823,0.67670654,111440.0,111430.0,0.06387835]
[1752101828015,0.31590654,111440.0,111430.0,0.25909045]
[1752101828214,0.67670654,111440.0,111430.0,0.52930261]
[1752101829329,0.66164654,111440.0,111430.0,0.51351297]
[1752101829621,0.70030654,111440.0,111430.0,0.52980297]
[1752101830121,0.70030654,111440.0,111430.0,0.35038087]
[1752101831121,0.73320654,111440.0,111430.0,0.33409087]
[1752101831323,0.76510654,111440.0,111430.0,0.33409087]
[1752101831525,0.76510654,111440.0,111430.0,0.30309087]
[1752101831824,0.76510654,111440.0,111430.0,0.48251297]
[1752101832020,0.76510654,111440.0,111430.0,0.49880297]
[1752101832615,0.76446319,111440.0,111430.0,0.49880297]
[1752101833519,0.79121311,111440.0,111430.0,0.49880297]
[1752101833822,0.68369723,111440.0,111430.0,0.49880297]
[1752101834020,0.68369723,111440.0,111430.0,0.35268087]
[1752101834925,0.68369723,111440.0,111430.0,0.33639087]
[1752101835125,0.68369723,111440.0,111430.0,0.35268087]
[1752101835424,0.68369723,111440.0,111430.0,0.53210287]
[1752101835625,0.68369723,111440.0,111430.0,0.35268087]
[1752101836228,0.68369723,111440.0,111430.0,0.53210287]
[1752101837425,0.68369723,111440.0,111430.0,0.29289071]
[1752101837626,0.79121311,111440.0,111430.0,0.11346871]
[1752101837924,0.76446407,111440.0,111430.0,0.53210287]
[1752101838123,0.76446407,111440.0,111430.0,0.53210288]
[1752101838427,0.76446407,111440.0,111430.0,0.11346872]
[1752101838626,0.76446407,111440.0,111430.0,0.35268088]
[1752101838817,0.76446407,111440.0,111430.0,0.53210288]
[1752101839019,0.76446407,111440.0,111430.0,0.35268088]
[1752101839621,0.76446407,111440.0,111430.0,0.11346872]
[1752101839822,0.76446407,111440.0,111430.0,0.35268088]
[1752101840529,0.78289207,111440.0,111430.0,0.33582806]
[1752101841535,0.78289207,111440.0,111430.0,0.51525006]
[1752101842132,0.78289207,111440.0,111430.0,0.2760379]
[1752101842331,0.78289207,111440.0,111430.0,0.51525006]
[1752101842924,0.70212523,111440.0,111430.0,0.0966159]
[1752101843129,0.70212523,111440.0,111430.0,0.33582806]
[1752101843327,0.70212523,111440.0,111430.0,0.51525006]
[1752101843525,0.61407523,111440.0,111430.0,0.51525006]
[1752101844225,0.59866523,111440.0,111430.0,0.51525006]
[1752101844431,0.61407523,111440.0,111430.0,0.51525006]
[1752101844823,0.59866523,111440.0,111430.0,0.51525006]
[1752101845023,0.98579523,111440.0,111430.0,0.51525006]
[1752101845223,1.06656177,111440.0,111430.0,0.51525006]
[1752101846032,1.42736177,111440.0,111430.0,0.51525006]
[1752101846330,1.34659523,111440.0,111430.0,0.51525006]
[1752101846935,1.42736214,111440.0,111430.0,0.51525006]
[1752101847126,1.42676214,111440.0,111430.0,0.51525006]
[1752101849536,1.45001214,111440.0,111430.0,0.51525006]
[1752101850234,1.45001214,111440.0,111430.0,0.2760379]
[1752101850535,1.45001214,111440.0,111430.0,0.51525006]
[1752101850737,1.45001214,111440.0,111430.0,0.2760379]
[1752101851036,1.45001214,111440.0,111430.0,0.51525006]
[1752101851232,1.45001214,111440.0,111430.0,0.33582806]
[1752101851736,1.45001214,111440.0,111430.0,0.0966159]
[1752101851934,1.45001214,111440.0,111430.0,0.33582806]
[1752101852139,1.51091214,111440.0,111430.0,0.31953806]
[1752101852834,1.51091214,111440.0,111430.0,0.33582806]
[1752101854029,1.51091214,111440.0,111430.0,0.25323806]
[1752101854424,1.43014523,111440.0,111430.0,0.0140259]
[1752101854628,1.43014523,111440.0,111430.0,0.25323806]
[1752101854838,1.43014523,111440.0,111430.0,0.0140259]
[1752101855134,1.43014523,111440.0,111430.0,0.25323806]
[1752101856136,1.43014523,111440.0,111430.0,0.26952806]
[1752101856935,1.43014523,111440.0,111430.0,0.03031595]
[1752101857136,1.43014523,111440.0,111430.0,0.26952811]
[1752101857329,1.53766111,111440.0,111430.0,0.26952811]
[1752101858037,1.43014523,111440.0,111430.0,0.26952811]
[1752101858235,1.43014523,111440.0,111430.0,0.03031595]
[1752101858634,1.43014523,111440.0,111430.0,0.26952811]
[1752101859139,1.43014523,111440.0,111430.0,0.03031595]
[1752101859335,1.41582523,111440.0,111430.0,0.01402595]
[1752101859535,1.41582523,111440.0,111430.0,0.25323811]
[1752101859736,1.41582523,111440.0,111430.0,0.26905811]
[1752101860038,1.52334111,111440.0,111430.0,0.26905811]
[1752101860335,1.41582523,111440.0,111430.0,0.26905811]
[1752101861035,1.52334111,111440.0,111430.0,0.26905811]
[1752101861541,1.41582523,111440.0,111430.0,0.26905811]
[1752101861840,1.52334111,111440.0,111430.0,0.26905811]
[1752101862041,1.41582523,111440.0,111430.0,0.26905811]
[1752101862542,1.52334111,111440.0,111430.0,0.26905811]
[1752101862737,1.49900111,111440.0,111430.0,0.25323811]
[1752101863040,1.52334111,111440.0,111430.0,0.25323811]
[1752101864537,1.52334111,111440.0,111430.0,0.26905811]
[1752101864743,1.52334111,111440.0,111430.0,0.25323811]
[1752101865145,1.52334111,111440.0,111430.0,0.26905811]
[1752101867447,1.52334111,111440.0,111430.0,0.26905834]
[1752101867749,0.79142111,111440.0,111430.0,0.26905834]
[1752101867948,1.52413111,111440.0,111430.0,0.26905834]
[1752101868248,1.38183723,111440.0,111430.0,0.22632879]
[1752101868544,1.29659723,111440.0,111430.0,0.54834095]
[1752101869047,0.58023723,111440.0,111430.0,0.54834095]
[1752101869246,1.31578723,111440.0,111430.0,0.54834095]
[1752101869546,1.29943723,111440.0,111430.0,0.54834095]
[1752101870253,1.01940223,111440.0,111430.0,0.54834095]
[1752101870440,1.01940223,111440.0,111430.0,0.54834023]
[1752101870441,1.01888223,111440.0,111430.0,0.54834023]
[1752101871645,1.01888223,111440.0,111430.0,0.53252023]
[1752101871841,1.01888223,111440.0,111430.0,0.57098023]
[1752101873444,1.01888223,111440.0,111430.0,0.57097976]
[1752101875351,1.01888223,111440.0,111430.0,0.3317676]
[1752101875553,1.01888223,111440.0,111430.0,0.57097976]
[1752101880557,1.06198472,111440.0,111430.0,0.43265915]
[1752101880756,1.14548472,111440.0,111430.0,0.43265915]
[1752101883158,1.14548472,111440.0,111430.0,0.19344699]
[1752101883560,1.14548472,111440.0,111430.0,0.43265915]
[1752101883960,1.12114472,111440.0,111430.0,0.43265915]
[1752101884154,1.14548472,111440.0,111430.0,0.43265915]
[1752101885560,1.14548472,111440.0,111430.0,0.43265972]
[1752101886660,1.06471972,111440.0,111430.0,0.43265972]
[1752101886865,1.06471972,111440.0,111430.0,0.43266383]
[1752101888758,1.30393599,111440.0,111430.0,0.25324183]
[1752101888958,1.66473599,111440.0,111430.0,0.25324183]
[1752101889664,1.42551972,111440.0,111430.0,0.25324183]
[1752101889862,1.66473599,111440.0,111430.0,0.25324216]
[1752101893961,1.50625148,111440.0,111430.0,0.25324216]
[1752101894163,1.74546775,111440.0,111430.0,0.25324216]
[1752101894660,1.02678775,111440.0,111430.0,0.25324216]
[1752101894861,1.72826775,111440.0,111430.0,0.25324216]
[1752101896262,1.48905148,111440.0,111430.0,0.25324216]
[1752101896766,1.48905148,111440.0,111430.0,0.44924416]
[1752101896962,1.48905148,111440.0,111430.0,0.43266416]
[1752101897267,1.5158356,111440.0,111430.0,0.25324216]
[1752101898161,1.5158356,111440.0,111430.0,0.03060589]
[1752101898460,1.5158356,111440.0,111430.0,0.26982216]
[1752101898660,0.6349497,111440.0,111430.0,0.44924416]
[1752101898864,1.1428856,111440.0,111430.0,0.68846043]
[1752101899065,1.0438756,111440.0,111430.0,0.77336043]
[1752101899364,1.0438756,111440.0,111430.0,0.79615043]
[1752101899858,0.3457156,111440.0,111430.0,0.79615043]
[1752101900158,0.25370972,111440.0,111430.0,1.15695043]
[1752101900363,1.03220009,111440.0,111430.0,1.15695043]
[1752101900566,0.93595972,111440.0,111430.0,1.15695043]
[1752101900957,1.03119931,111440.0,111430.0,1.15695043]
[1752101901658,0.15403341,111440.0,111430.0,1.15695043]
[1752101901860,0.83496341,111440.0,111430.0,1.3961667]
[1752101902158,0.83296341,111440.0,111430.0,1.1660216]
[1752101902455,1.01236931,111440.0,111430.0,1.1660216]
[1752101902658,1.01252931,111440.0,111430.0,1.40523787]
[1752101902858,1.01252931,111440.0,111430.0,0.68758906]
[1752101903059,1.01252931,111440.0,111430.0,0.92669862]
[1752101903258,0.81436092,111440.0,111430.0,1.16580818]
[1752101903459,0.81436092,111440.0,111430.0,1.17632595]
[1752101903660,0.002,111450.0,111440.0,0.1794059]
[1752101903862,0.8775098,111450.0,111440.0,1.13407058]
[1752101904372,0.69812,111450.0,111440.0,1.14458771]
[1752101904669,0.699,111450.0,111440.0,1.13407058]
[1752101905064,0.701,111450.0,111440.0,1.14458739]
[1752101905267,0.701,111450.0,111440.0,1.13407058]
[1752101905565,0.699,111450.0,111440.0,1.2060213]
[1752101905772,0.699,111450.0,111440.0,1.2080213]
[1752101906573,0.003,111450.0,111440.0,1.2080213]
[1752101907176,0.003,111450.0,111440.0,1.2308113]
[1752101907372,0.002,111450.0,111440.0,1.2308113]
[1752101907570,0.002,111450.0,111440.0,1.2318113]
[1752101910480,0.002,111450.0,111440.0,2.6171313]
[1752101910680,0.002,111450.0,111440.0,1.2318113]
[1752101913079,0.01751,111450.0,111440.0,1.15986058]
[1752101913385,0.8865398,111450.0,111440.0,0.89795741]
[1752101913577,0.8865398,111450.0,111440.0,0.91453741]
[1752101915200,0.8865398,111450.0,111440.0,0.93732741]
[1752101915692,0.74684152,111450.0,111440.0,0.93732741]
[1752101915891,0.05720152,111450.0,111440.0,0.69821785]
[1752101916091,0.05720152,111450.0,111440.0,1.17643697]
[1752101916293,0.04169152,111450.0,111440.0,1.17643697]
[1752101919398,0.04169152,111450.0,111440.0,1.17643682]
[1752101919999,0.04169152,111450.0,111440.0,1.2482198]
[1752101922300,0.04169152,111450.0,111440.0,1.24821994]
[1752101922798,0.04169152,111450.0,111440.0,1.00911038]
[1752101928199,0.04169152,111450.0,111440.0,1.01962698]
[1752101929296,0.04169152,111450.0,111440.0,1.00911032]
[1752101930400,0.04169152,111450.0,111440.0,1.01962698]
[1752101931101,0.04169152,111450.0,111440.0,1.25873654]
[1752101931701,0.04169152,111450.0,111440.0,0.99508811]
[1752101931999,0.04169152,111450.0,111440.0,1.01962694]
[1752101934198,0.05676152,111450.0,111440.0,1.01962694]
[1752101934902,0.05676152,111450.0,111440.0,1.49783712]
[1752101935088,0.05676152,111450.0,111440.0,1.25873054]
[1752101935288,0.09656152,111450.0,111440.0,1.25873054]
[1752101935802,0.09656152,111450.0,111440.0,1.24215054]
[1752101936003,0.13586152,111450.0,111440.0,1.24215054]
[1752101936298,0.13586152,111450.0,111440.0,1.48344712]
[1752101936503,0.13586152,111450.0,111440.0,1.24434054]
[1752101938002,0.09606152,111450.0,111440.0,1.24434054]
[1752101938203,0.05676152,111450.0,111440.0,1.48344712]
[1752101939500,0.08052528,111470.0,111460.0,0.1793737]
[1752101939801,0.24391035,111480.0,111470.0,0.1793576]
[1752101939802,0.78683588,111480.0,111470.0,0.1793576]
[1752101940007,0.96617738,111480.0,111470.0,0.71459295]
[1752101940197,0.97526323,111480.0,111470.0,0.75619295]
[1752101940697,0.99033323,111480.0,111470.0,0.27797791]
[1752101940897,1.07293323,111480.0,111470.0,0.75619107]
[1752101941094,1.07293323,111480.0,111470.0,0.71459107]
[1752101941509,1.07293323,111480.0,111470.0,0.73082107]
[1752101941701,1.07293323,111480.0,111470.0,0.44871449]
[1752101941898,1.04612803,111480.0,111470.0,0.45922947]
[1752101942507,1.04912803,111480.0,111470.0,0.45922947]
[1752101942801,0.96841735,111480.0,111470.0,0.45915121]
[1752101943006,0.29109735,111480.0,111470.0,0.45915121]
[1752101943197,1.04836803,111480.0,111470.0,0.44863623]
[1752101943399,0.97165735,111480.0,111470.0,0.44863623]
[1752101943797,0.97165735,111480.0,111470.0,0.47361623]
[1752101944807,0.96677735,111480.0,111470.0,0.47361623]
[1752101945003,1.04748803,111480.0,111470.0,0.23458791]
[1752101945498,1.04748803,111480.0,111470.0,0.47361618]
[1752101946109,1.04664803,111480.0,111470.0,0.47361618]
[1752101948310,1.04664803,111480.0,111470.0,0.47361599]
[1752101951512,1.087025,111480.0,111470.0,0.47361599]
[1752101952014,1.087025,111480.0,111470.0,0.45959592]
[1752101953511,1.00631432,111480.0,111470.0,0.45959592]
[1752101958718,1.087025,111480.0,111470.0,0.45959592]
[1752101959318,1.087025,111480.0,111470.0,0.43461592]
[1752101960015,1.087025,111480.0,111470.0,0.1955876]
[1752101960218,1.087025,111480.0,111470.0,0.43461592]
[1752101960620,1.087025,111480.0,111470.0,0.1955876]
[1752101960810,1.087025,111480.0,111470.0,0.43461592]
[1752101963219,1.083105,111480.0,111470.0,0.43461592]
[1752101964220,0.412185,111480.0,111470.0,0.43461592]
[1752101964419,1.083065,111480.0,111470.0,0.43461592]
[1752101966414,1.083065,111480.0,111470.0,0.01623]
[1752101966616,0.1793576,111470.0,111460.0,0.47835021]
[1752101966810,1.71282454,111470.0,111460.0,0.25608861]
[1752101967519,1.71282454,111470.0,111460.0,0.27011015]
[1752101968025,1.71382454,111470.0,111460.0,0.27011015]
[1752101968823,1.47468792,111470.0,111460.0,0.27008634]
[1752101969710,1.47468792,111470.0,111460.0,0.44945994]
[1752101972316,1.47468792,111470.0,111460.0,0.46519994]
[1752101972822,1.37113545,111470.0,111460.0,0.4757163]
[1752101973016,1.37113545,111470.0,111460.0,0.45876431]
[1752101973710,1.37113545,111470.0,111460.0,0.49966431]
[1752101974222,1.37113545,111470.0,111460.0,0.49966427]
[1752101975118,1.37113545,111470.0,111460.0,0.53034795]
[1752101976519,1.35593545,111470.0,111460.0,0.53034795]
[1752101980120,1.35593545,111470.0,111460.0,0.51632641]
[1752101980328,1.35593545,111470.0,111460.0,0.53034808]
[1752101980723,1.37866545,111470.0,111460.0,0.47340808]
[1752101981024,1.45930792,111470.0,111460.0,0.47340808]
[1752101981226,1.45930792,111470.0,111460.0,0.29403448]
[1752101981424,1.45930792,111470.0,111460.0,0.25313448]
[1752101981825,1.45930792,111470.0,111460.0,0.43250808]
[1752101982221,1.45930792,111470.0,111460.0,0.25313448]
[1752101982626,1.45930792,111470.0,111460.0,0.43250808]
[1752101983123,1.45930792,111470.0,111460.0,0.43250813]
[1752101983326,1.45930792,111470.0,111460.0,0.44774813]
[1752101985728,1.45930792,111470.0,111460.0,0.20863532]
[1752101985929,1.45930792,111470.0,111460.0,0.44774813]
[1752101986527,1.43657792,111470.0,111460.0,0.43250813]
[1752101986729,1.45930792,111470.0,111460.0,0.44774813]
[1752101987228,1.09850792,111470.0,111460.0,0.44774813]
[1752101987427,1.45930792,111470.0,111460.0,0.44774813]
[1752101987830,1.09850792,111470.0,111460.0,0.46501936]
[1752101988025,1.09850792,111470.0,111460.0,0.50551936]
[1752101988227,1.07577792,111470.0,111460.0,0.54681936]
[1752101988526,1.43657792,111470.0,111460.0,0.54681936]
[1752101990830,1.43657792,111470.0,111460.0,0.78587805]
[1752101991031,1.41747704,111470.0,111460.0,0.58923322]
[1752101991728,1.44020704,111470.0,111460.0,0.58923322]
[1752101992128,1.44020704,111470.0,111460.0,0.53269322]
[1752101992522,1.07940704,111470.0,111460.0,0.53269322]
[1752101992827,1.44020704,111470.0,111460.0,0.49219322]
[1752101994233,1.35956457,111470.0,111460.0,0.49219322]
[1752101994432,1.44026625,111470.0,111460.0,0.49219322]
[1752101995231,1.35956457,111470.0,111460.0,0.49219322]
[1752101999336,1.35956457,111470.0,111460.0,0.01402172]
[1752101999534,1.35956457,111470.0,111460.0,0.49219322]
[1752101999736,1.35956457,111470.0,111460.0,0.5053888]
[1752101999932,1.59865032,111470.0,111460.0,0.0272173]
[1752102000137,1.7061662,111470.0,111460.0,0.0272173]
[1752102000340,0.1794219,111440.0,111430.0,0.44276285]
[1752102000639,1.24729539,111440.0,111430.0,0.30774342]
[1752102000938,1.31710564,111440.0,111430.0,0.23908575]
[1752102001133,1.11811989,111440.0,111430.0,0.23908575]
[1752102001333,1.35720564,111440.0,111430.0,0.25432575]
[1752102001536,1.35720564,111440.0,111430.0,0.25832575]
[1752102001738,1.31904564,111440.0,111430.0,0.24308575]
[1752102001942,1.34177564,111440.0,111430.0,0.24308575]
[1752102002140,1.34177564,111440.0,111430.0,0.24608575]
[1752102002339,1.23413462,111440.0,111430.0,0.26132575]
[1752102002637,1.23413462,111440.0,111430.0,0.02224]
[1752102002837,0.99504887,111440.0,111430.0,0.02224]
[1752102003038,1.01047887,111440.0,111430.0,0.02224]
[1752102003239,1.09102903,111440.0,111430.0,0.02224]
[1752102003437,1.45182903,111440.0,111430.0,0.02224]
[1752102003639,1.37127887,111440.0,111430.0,0.02224]
[1752102004238,1.45179809,111440.0,111430.0,0.02224]
[1752102005649,1.43636809,111440.0,111430.0,0.007]
[1752102006944,1.43636809,111440.0,111430.0,0.02224]
[1752102007549,1.07556809,111440.0,111430.0,0.02224]
[1752102008449,1.43636809,111440.0,111430.0,0.02224]
[1752102009655,0.40604809,111440.0,111430.0,0.2016619]
[1752102009854,1.09063809,111440.0,111430.0,0.02224]
[1752102010055,1.09063809,111440.0,111430.0,0.06204]
[1752102010354,1.05247809,111440.0,111430.0,0.28603401]
[1752102010554,1.43705809,111440.0,111430.0,0.30199401]
[1752102011054,1.35653887,111440.0,111430.0,0.30199401]
[1752102012147,1.43705809,111440.0,111430.0,0.30199401]
[1752102013257,1.43705809,111440.0,111430.0,0.06276]
[1752102015860,1.43705809,111440.0,111430.0,0.30199401]
[1752102017658,1.43705809,111440.0,111430.0,0.06276]
[1752102020257,0.179438,111420.0,111410.0,0.0243]
[1752102020560,1.24921497,111420.0,111410.0,0.56647014]
[1752102020954,1.2581509,111420.0,111410.0,0.56647014]
[1752102021455,1.2581509,111420.0,111410.0,0.57247014]
[1752102021657,1.33867012,111420.0,111410.0,0.57347014]
[1752102021852,0.97787012,111420.0,111410.0,0.57347014]
[1752102022055,0.8973509,111420.0,111410.0,0.57347014]
[1752102022254,0.9127809,111420.0,111410.0,0.56847014]
[1752102023355,0.99330012,111420.0,111410.0,0.56847014]
[1752102024263,0.99330012,111420.0,111410.0,0.32923613]
[1752102024562,0.99330012,111420.0,111410.0,0.56847014]
[1752102024953,0.99330012,111420.0,111410.0,0.56852434]
[1752102025965,0.99330012,111420.0,111410.0,0.56855675]
[1752102029265,1.02042192,111420.0,111410.0,0.32926854]
[1752102029464,1.02042192,111420.0,111410.0,0.56855675]
[1752102031464,1.02042192,111420.0,111410.0,0.32926854]
[1752102031663,1.02042192,111420.0,111410.0,0.56855675]
[1752102031864,1.02042192,111420.0,111410.0,0.56855744]
[1752102032266,1.02042192,111420.0,111410.0,0.32926923]
[1752102032460,0.9127809,111420.0,111410.0,0.56855744]
[1752102032661,0.9127809,111420.0,111410.0,0.32926923]
[1752102032860,0.9127809,111420.0,111410.0,0.56855744]